[Event "Early-Titled-Tuesday-Blitz-May-28-2024"]
[Site "Chess.com"]
[Date "2024.05.28"]
[Round "10"]
[White "Lady_Nika"]
[Black "Meri-Arabidze"]
[Result "0-1"]
[WhiteElo "2532"]
[BlackElo "2697"]
[TimeControl "180+1"]
[EndTime "9:57:35 PDT"]
[Termination "Meri-Arabidze won by checkmate"]

1. e4 {[%clk 0:03:00.9]} 1... c5 {[%clk 0:02:58.2]} 2. Nc3 {[%clk 0:03:00.6]}
2... Nc6 {[%clk 0:02:55.9]} 3. g3 {[%clk 0:03:01.3]} 3... g6 {[%clk 0:02:55.5]}
4. Bg2 {[%clk 0:03:02]} 4... Bg7 {[%clk 0:02:56]} 5. d3 {[%clk 0:03:02.1]} 5...
d6 {[%clk 0:02:56.5]} 6. f4 {[%clk 0:03:02.3]} 6... Nf6 {[%clk 0:02:56.6]} 7.
Nf3 {[%clk 0:03:02.7]} 7... O-O {[%clk 0:02:56.8]} 8. O-O {[%clk 0:03:03.1]}
8... Rb8 {[%clk 0:02:57.1]} 9. Rb1 {[%clk 0:03:03.5]} 9... b5 {[%clk 0:02:57.4]}
10. Ne2 {[%clk 0:03:04.1]} 10... b4 {[%clk 0:02:57.5]} 11. h3 {[%clk 0:03:04.6]}
11... a5 {[%clk 0:02:56]} 12. Be3 {[%clk 0:03:05]} 12... Ba6 {[%clk 0:02:55.9]}
13. g4 {[%clk 0:03:05.3]} 13... c4 {[%clk 0:02:56.1]} 14. Ng3 {[%clk 0:03:05.1]}
14... b3 {[%clk 0:02:51.6]} 15. axb3 {[%clk 0:03:04.7]} 15... cxd3 {[%clk
0:02:51.6]} 16. cxd3 {[%clk 0:03:04.1]} 16... Nb4 {[%clk 0:02:49]} 17. Ne1
{[%clk 0:03:02.2]} 17... Nd7 {[%clk 0:02:42.5]} 18. Rf2 {[%clk 0:03:01.2]} 18...
Nc5 {[%clk 0:02:21.5]} 19. Bf1 {[%clk 0:02:58]} 19... Nc6 {[%clk 0:02:06.8]} 20.
d4 {[%clk 0:02:55.4]} 20... Bxf1 {[%clk 0:02:06.2]} 21. dxc5 {[%clk 0:02:54.7]}
21... Ba6 {[%clk 0:01:56.1]} 22. Rd2 {[%clk 0:02:49.6]} 22... Qc7 {[%clk
0:01:38.2]} 23. cxd6 {[%clk 0:02:49.1]} 23... exd6 {[%clk 0:01:38.8]} 24. Rxd6
{[%clk 0:02:48.4]} 24... Rfd8 {[%clk 0:01:37.4]} 25. Rxd8+ {[%clk 0:02:48]}
25... Rxd8 {[%clk 0:01:37.6]} 26. Qc2 {[%clk 0:02:48.4]} 26... Qb7 {[%clk
0:01:26.6]} 27. Rd1 {[%clk 0:02:43.2]} 27... Rc8 {[%clk 0:01:26.3]} 28. Rc1
{[%clk 0:02:10.3]} 28... Qb5 {[%clk 0:01:23.3]} 29. Qf2 {[%clk 0:01:54.7]} 29...
Qxb3 {[%clk 0:01:18.8]} 30. e5 {[%clk 0:01:54.6]} 30... Qb4 {[%clk 0:01:01]} 31.
Nf3 {[%clk 0:01:37.4]} 31... Bb7 {[%clk 0:00:57.1]} 32. Nd4 {[%clk 0:01:31.1]}
32... Nxd4 {[%clk 0:00:54.9]} 33. Rxc8+ {[%clk 0:01:30.9]} 33... Bxc8 {[%clk
0:00:55.7]} 34. Bxd4 {[%clk 0:01:31.5]} 34... Bb7 {[%clk 0:00:54.2]} 35. Bc3
{[%clk 0:01:25.3]} 35... Qb3 {[%clk 0:00:45.6]} 36. Bxa5 {[%clk 0:01:24.1]}
36... Bf8 {[%clk 0:00:41.5]} 37. Bc3 {[%clk 0:01:19.2]} 37... Qd5 {[%clk
0:00:41.3]} 38. Bd4 {[%clk 0:01:04.2]} 38... Bb4 {[%clk 0:00:39.5]} 39. Kf1
{[%clk 0:00:41]} 39... Qc4+ {[%clk 0:00:36.1]} 40. Ne2 {[%clk 0:00:37.7]} 40...
Qd3 {[%clk 0:00:33.8]} 41. Qe3 {[%clk 0:00:33.7]} 41... Qd1+ {[%clk 0:00:34]}
42. Kf2 {[%clk 0:00:24.3]} 42... Qe1# {[%clk 0:00:34.5]} 0-1

[Event "Early-Titled-Tuesday-Blitz-May-28-2024"]
[Site "Chess.com"]
[Date "2024.05.28"]
[Round "10"]
[White "Kildepiotr"]
[Black "CristianS27"]
[Result "1-0"]
[WhiteElo "2740"]
[BlackElo "2545"]
[TimeControl "180+1"]
[EndTime "9:57:37 PDT"]
[Termination "Kildepiotr won by resignation"]

1. Nf3 {[%clk 0:02:56.9]} 1... Nf6 {[%clk 0:02:59.3]} 2. g3 {[%clk 0:02:57.3]}
2... g6 {[%clk 0:03:00.2]} 3. Bg2 {[%clk 0:02:57.9]} 3... Bg7 {[%clk 0:03:01]}
4. O-O {[%clk 0:02:58.6]} 4... O-O {[%clk 0:03:01.9]} 5. d4 {[%clk 0:02:59.2]}
5... d6 {[%clk 0:03:02.3]} 6. Nbd2 {[%clk 0:02:59.5]} 6... Nc6 {[%clk
0:03:01.8]} 7. e4 {[%clk 0:03:00.1]} 7... e5 {[%clk 0:03:02]} 8. dxe5 {[%clk
0:03:01]} 8... dxe5 {[%clk 0:03:01.4]} 9. c3 {[%clk 0:03:01.2]} 9... a5 {[%clk
0:02:58.5]} 10. Qe2 {[%clk 0:03:00.2]} 10... b6 {[%clk 0:02:55.4]} 11. Rd1
{[%clk 0:03:00]} 11... Ba6 {[%clk 0:02:54.8]} 12. Qe1 {[%clk 0:03:00.6]} 12...
Qe7 {[%clk 0:02:54]} 13. Bf1 {[%clk 0:03:01.1]} 13... Bxf1 {[%clk 0:02:53.2]}
14. Nxf1 {[%clk 0:03:02]} 14... Rfd8 {[%clk 0:02:53.7]} 15. Bg5 {[%clk
0:03:02.1]} 15... h6 {[%clk 0:02:50.4]} 16. Bxf6 {[%clk 0:03:02]} 16... Bxf6
{[%clk 0:02:51.1]} 17. Ne3 {[%clk 0:03:01.9]} 17... Qe6 {[%clk 0:02:20.4]} 18.
Nd5 {[%clk 0:02:59.8]} 18... Rac8 {[%clk 0:02:09.9]} 19. Qe2 {[%clk 0:02:59.7]}
19... Ne7 {[%clk 0:02:03.5]} 20. c4 {[%clk 0:02:52.1]} 20... Nxd5 {[%clk
0:01:55.3]} 21. cxd5 {[%clk 0:02:48.8]} 21... Qe8 {[%clk 0:01:40.8]} 22. Qa6
{[%clk 0:02:42]} 22... Qa4 {[%clk 0:01:33.5]} 23. Nd2 {[%clk 0:02:35.8]} 23...
Bg5 {[%clk 0:01:28.5]} 24. Qc4 {[%clk 0:02:30]} 24... Qd7 {[%clk 0:01:16.3]} 25.
Nf1 {[%clk 0:02:27.6]} 25... c6 {[%clk 0:01:03]} 26. Qa6 {[%clk 0:02:26.9]}
26... cxd5 {[%clk 0:00:56.9]} 27. Rxd5 {[%clk 0:02:24.4]} 27... Qe6 {[%clk
0:00:50.9]} 28. h4 {[%clk 0:02:23.4]} 28... Be7 {[%clk 0:00:47.4]} 29. Rad1
{[%clk 0:02:21.8]} 29... Rxd5 {[%clk 0:00:43.1]} 30. exd5 {[%clk 0:02:17]} 30...
Qh3 {[%clk 0:00:30.6]} 31. d6 {[%clk 0:02:12.5]} 31... Bd8 {[%clk 0:00:27.5]}
32. Qb5 {[%clk 0:01:44.6]} 32... Kg7 {[%clk 0:00:22.8]} 33. Qxe5+ {[%clk
0:01:39.4]} 33... Bf6 {[%clk 0:00:23.1]} 34. Qe4 {[%clk 0:01:32.5]} 34... Bxb2
{[%clk 0:00:18.9]} 35. Ne3 {[%clk 0:01:21.4]} 35... Rd8 {[%clk 0:00:16.4]} 36.
Nc4 {[%clk 0:01:16.9]} 36... Bf6 {[%clk 0:00:13.5]} 37. Nxb6 {[%clk 0:01:15.8]}
37... Qe6 {[%clk 0:00:08]} 38. Qxe6 {[%clk 0:01:15.1]} 38... fxe6 {[%clk
0:00:08.9]} 39. a4 {[%clk 0:01:09.5]} 39... Kf7 {[%clk 0:00:08.5]} 40. Nc4
{[%clk 0:01:09.4]} 40... Bc3 {[%clk 0:00:07]} 41. Rd3 {[%clk 0:01:08.5]} 41...
Bb4 {[%clk 0:00:07.1]} 42. Rf3+ {[%clk 0:01:07.8]} 42... Ke8 {[%clk 0:00:07.3]}
43. Rf6 {[%clk 0:01:07.6]} 43... Kd7 {[%clk 0:00:04.8]} 44. Rxg6 {[%clk
0:01:07.8]} 44... Bxd6 {[%clk 0:00:05]} 45. Nxa5 {[%clk 0:01:05.3]} 45... Ra8
{[%clk 0:00:03.4]} 46. Nc4 {[%clk 0:01:04.3]} 46... Be7 {[%clk 0:00:01.3]} 47.
Nb6+ {[%clk 0:01:03.2]} 1-0

[Event "Early-Titled-Tuesday-Blitz-May-28-2024"]
[Site "Chess.com"]
[Date "2024.05.28"]
[Round "10"]
[White "MdChess1734"]
[Black "Sofia_Blokhin"]
[Result "1-0"]
[WhiteElo "2416"]
[BlackElo "2258"]
[TimeControl "180+1"]
[EndTime "9:57:37 PDT"]
[Termination "MdChess1734 won by checkmate"]

1. e4 {[%clk 0:02:47.9]} 1... c5 {[%clk 0:02:59.1]} 2. Nf3 {[%clk 0:02:47.9]}
2... e6 {[%clk 0:02:59.2]} 3. d4 {[%clk 0:02:48.3]} 3... cxd4 {[%clk 0:02:59.2]}
4. Nxd4 {[%clk 0:02:49]} 4... a6 {[%clk 0:02:59.5]} 5. Bd3 {[%clk 0:02:47.7]}
5... Nf6 {[%clk 0:02:58.7]} 6. O-O {[%clk 0:02:46.5]} 6... Qc7 {[%clk 0:02:59]}
7. Qe2 {[%clk 0:02:46.4]} 7... Bd6 {[%clk 0:02:49.4]} 8. Kh1 {[%clk 0:02:43.3]}
8... Nc6 {[%clk 0:02:48.4]} 9. Nxc6 {[%clk 0:02:39.9]} 9... dxc6 {[%clk
0:02:48.4]} 10. f4 {[%clk 0:02:40.2]} 10... e5 {[%clk 0:02:47.6]} 11. Nd2 {[%clk
0:02:39.3]} 11... O-O {[%clk 0:02:42.6]} 12. Nf3 {[%clk 0:02:29]} 12... Bg4
{[%clk 0:02:36.2]} 13. f5 {[%clk 0:02:27.6]} 13... b5 {[%clk 0:02:26.3]} 14. Qf2
{[%clk 0:02:19.6]} 14... Bxf3 {[%clk 0:02:24.8]} 15. Qxf3 {[%clk 0:02:19.4]}
15... h6 {[%clk 0:02:22.8]} 16. g4 {[%clk 0:02:17.1]} 16... Nh7 {[%clk
0:02:19.2]} 17. h4 {[%clk 0:02:13.9]} 17... Be7 {[%clk 0:02:17.5]} 18. Qg3
{[%clk 0:01:41.7]} 18... Qd8 {[%clk 0:02:05.7]} 19. g5 {[%clk 0:01:38]} 19...
hxg5 {[%clk 0:02:04.4]} 20. Rg1 {[%clk 0:01:37]} 20... f6 {[%clk 0:01:52.3]} 21.
Be3 {[%clk 0:01:26.2]} 21... Qe8 {[%clk 0:01:46.3]} 22. Rg2 {[%clk 0:01:22.1]}
22... g6 {[%clk 0:01:21.4]} 23. Rh2 {[%clk 0:00:55.6]} 23... gxf5 {[%clk
0:01:17.2]} 24. exf5 {[%clk 0:00:53.7]} 24... Qf7 {[%clk 0:01:05.4]} 25. hxg5
{[%clk 0:00:50.9]} 25... Nxg5 {[%clk 0:00:49.8]} 26. Rg1 {[%clk 0:00:34]} 26...
Qg7 {[%clk 0:00:44.5]} 27. Bxg5 {[%clk 0:00:14.9]} 27... fxg5 {[%clk 0:00:42.7]}
28. Be4 {[%clk 0:00:14]} 28... Qf6 {[%clk 0:00:34.8]} 29. Qh3 {[%clk 0:00:08.9]}
29... Kf7 {[%clk 0:00:28.2]} 30. Qh5+ {[%clk 0:00:08.6]} 30... Kg7 {[%clk
0:00:21.3]} 31. Qh7# {[%clk 0:00:08.2]} 1-0

[Event "Early-Titled-Tuesday-Blitz-May-28-2024"]
[Site "Chess.com"]
[Date "2024.05.28"]
[Round "10"]
[White "Goryachkina"]
[Black "Slovineanu"]
[Result "1-0"]
[WhiteElo "2682"]
[BlackElo "2529"]
[TimeControl "180+1"]
[EndTime "9:57:40 PDT"]
[Termination "Goryachkina won by resignation"]

1. e4 {[%clk 0:03:00]} 1... c6 {[%clk 0:02:59.7]} 2. d4 {[%clk 0:02:59.1]} 2...
d5 {[%clk 0:02:58]} 3. e5 {[%clk 0:02:59.5]} 3... Bf5 {[%clk 0:02:57.4]} 4. Nd2
{[%clk 0:02:59.3]} 4... e6 {[%clk 0:02:56.6]} 5. Nb3 {[%clk 0:02:59.5]} 5... Nd7
{[%clk 0:02:55.8]} 6. Nf3 {[%clk 0:02:59.6]} 6... a6 {[%clk 0:02:55]} 7. Be2
{[%clk 0:02:50.3]} 7... h6 {[%clk 0:02:54.7]} 8. O-O {[%clk 0:02:49.6]} 8... c5
{[%clk 0:02:54.8]} 9. c3 {[%clk 0:02:47.7]} 9... Ne7 {[%clk 0:02:50]} 10. Be3
{[%clk 0:02:40.3]} 10... cxd4 {[%clk 0:02:47.5]} 11. cxd4 {[%clk 0:02:27.4]}
11... Nc6 {[%clk 0:02:45.9]} 12. Ne1 {[%clk 0:02:23.3]} 12... Be7 {[%clk
0:02:43.5]} 13. Bd3 {[%clk 0:02:11]} 13... Bxd3 {[%clk 0:02:39.9]} 14. Nxd3
{[%clk 0:02:11]} 14... O-O {[%clk 0:02:39]} 15. Qh5 {[%clk 0:02:09.3]} 15... Nb6
{[%clk 0:02:09]} 16. Rad1 {[%clk 0:01:53]} 16... Nc4 {[%clk 0:02:06.1]} 17. Bc1
{[%clk 0:01:52.7]} 17... a5 {[%clk 0:01:58]} 18. Qg4 {[%clk 0:01:35.5]} 18...
Kh7 {[%clk 0:01:55]} 19. Nf4 {[%clk 0:01:30.1]} 19... a4 {[%clk 0:01:47.8]} 20.
Nd2 {[%clk 0:01:29.5]} 20... Nxd2 {[%clk 0:01:38.5]} 21. Rxd2 {[%clk 0:01:29.6]}
21... Bg5 {[%clk 0:01:35]} 22. Rd3 {[%clk 0:01:24.9]} 22... Bxf4 {[%clk
0:01:26.2]} 23. Bxf4 {[%clk 0:01:22.6]} 23... f5 {[%clk 0:01:24]} 24. exf6
{[%clk 0:01:06]} 24... Qxf6 {[%clk 0:01:22]} 25. Bg3 {[%clk 0:01:04.1]} 25...
Qg6 {[%clk 0:00:49.6]} 26. Qe2 {[%clk 0:01:01.1]} 26... Rac8 {[%clk 0:00:50.1]}
27. a3 {[%clk 0:00:54]} 27... Na5 {[%clk 0:00:45.1]} 28. Re3 {[%clk 0:00:47]}
28... Rc6 {[%clk 0:00:36.8]} 29. Be5 {[%clk 0:00:43.2]} 29... Rc2 {[%clk
0:00:18.7]} 30. Qe1 {[%clk 0:00:43.1]} 30... Rf5 {[%clk 0:00:14]} 31. Rg3 {[%clk
0:00:35.1]} 31... Rg5 {[%clk 0:00:10.3]} 32. Rxg5 {[%clk 0:00:34]} 32... Qxg5
{[%clk 0:00:10.9]} 33. Qxa5 {[%clk 0:00:34.2]} 33... Rxb2 {[%clk 0:00:10.6]} 34.
Qxa4 {[%clk 0:00:33.3]} 34... Qd2 {[%clk 0:00:09.5]} 35. Qd7 {[%clk 0:00:30.8]}
35... Qg5 {[%clk 0:00:08.7]} 36. Qxe6 {[%clk 0:00:29.8]} 1-0

[Event "Early-Titled-Tuesday-Blitz-May-28-2024"]
[Site "Chess.com"]
[Date "2024.05.28"]
[Round "10"]
[White "DarZay"]
[Black "eltenedor"]
[Result "1-0"]
[WhiteElo "2312"]
[BlackElo "2200"]
[TimeControl "180+1"]
[EndTime "9:57:40 PDT"]
[Termination "DarZay won by resignation"]

1. e4 {[%clk 0:02:55.1]} 1... b6 {[%clk 0:02:59]} 2. d4 {[%clk 0:02:54.2]} 2...
Bb7 {[%clk 0:02:58.9]} 3. e5 {[%clk 0:02:54.4]} 3... d6 {[%clk 0:02:51.7]} 4. f4
{[%clk 0:02:54]} 4... dxe5 {[%clk 0:02:47.2]} 5. fxe5 {[%clk 0:02:54.2]} 5... e6
{[%clk 0:02:39]} 6. Nf3 {[%clk 0:02:52.5]} 6... Ne7 {[%clk 0:02:26.6]} 7. c3
{[%clk 0:02:48.8]} 7... Nf5 {[%clk 0:02:21.8]} 8. Bd3 {[%clk 0:02:47.1]} 8...
Nh4 {[%clk 0:02:12.9]} 9. O-O {[%clk 0:02:39.6]} 9... Nxf3+ {[%clk 0:02:07.3]}
10. gxf3 {[%clk 0:02:39.2]} 10... Be7 {[%clk 0:01:59.4]} 11. Qc2 {[%clk
0:02:36.9]} 11... Bg5 {[%clk 0:01:38]} 12. Nd2 {[%clk 0:02:32.9]} 12... Be3+
{[%clk 0:01:33.6]} 13. Kh1 {[%clk 0:02:32.5]} 13... Qh4 {[%clk 0:01:25.9]} 14.
Ne4 {[%clk 0:02:27.3]} 14... Bxc1 {[%clk 0:01:17.9]} 15. Raxc1 {[%clk
0:02:25.2]} 15... O-O {[%clk 0:01:14.3]} 16. Qg2 {[%clk 0:02:21.2]} 16... Nd7
{[%clk 0:01:05.5]} 17. Rg1 {[%clk 0:02:15.2]} 17... Qh6 {[%clk 0:00:58.1]} 18.
Ng5 {[%clk 0:02:08.5]} 18... f5 {[%clk 0:00:42.5]} 19. Bc4 {[%clk 0:01:49.4]}
19... Bd5 {[%clk 0:00:37.8]} 20. Bxd5 {[%clk 0:01:48.1]} 20... exd5 {[%clk
0:00:38.7]} 21. f4 {[%clk 0:01:42.4]} 21... c6 {[%clk 0:00:35.3]} 22. Rce1
{[%clk 0:01:26.4]} 22... Rfe8 {[%clk 0:00:33.7]} 23. e6 {[%clk 0:01:21.1]} 23...
Nf8 {[%clk 0:00:11.8]} 24. e7 {[%clk 0:00:52.1]} 24... Ng6 {[%clk 0:00:10.9]}
25. Qc2 {[%clk 0:00:33.2]} 25... Nxe7 {[%clk 0:00:07.1]} 26. Re6 {[%clk
0:00:31.6]} 26... Qh4 {[%clk 0:00:04.6]} 27. Rge1 {[%clk 0:00:25.8]} 27... Qxf4
{[%clk 0:00:04.5]} 28. Qg2 {[%clk 0:00:23.9]} 28... Ng6 {[%clk 0:00:03.1]} 29.
Rxe8+ {[%clk 0:00:21.6]} 29... Rxe8 {[%clk 0:00:02.2]} 30. Rxe8+ {[%clk
0:00:21.6]} 30... Nf8 {[%clk 0:00:02.6]} 31. Rxf8+ {[%clk 0:00:21.7]} 31... Kxf8
{[%clk 0:00:02.6]} 32. Ne6+ {[%clk 0:00:21.6]} 1-0

[Event "Early-Titled-Tuesday-Blitz-May-28-2024"]
[Site "Chess.com"]
[Date "2024.05.28"]
[Round "10"]
[White "mishanick"]
[Black "Abund"]
[Result "1-0"]
[WhiteElo "3040"]
[BlackElo "2810"]
[TimeControl "180+1"]
[EndTime "9:57:41 PDT"]
[Termination "mishanick won by resignation"]

1. d4 {[%clk 0:02:49.6]} 1... d5 {[%clk 0:03:00.3]} 2. c4 {[%clk 0:02:50.1]}
2... e6 {[%clk 0:03:00.9]} 3. Nc3 {[%clk 0:02:50.7]} 3... Nf6 {[%clk 0:03:01.4]}
4. Bg5 {[%clk 0:02:51]} 4... dxc4 {[%clk 0:03:00.4]} 5. e3 {[%clk 0:02:50.6]}
5... c5 {[%clk 0:03:00.8]} 6. Bxc4 {[%clk 0:02:51.2]} 6... cxd4 {[%clk
0:03:00.9]} 7. Qxd4 {[%clk 0:02:50.3]} 7... Qxd4 {[%clk 0:02:57.9]} 8. exd4
{[%clk 0:02:51.2]} 8... Nbd7 {[%clk 0:02:57.8]} 9. Nf3 {[%clk 0:02:49.9]} 9...
Be7 {[%clk 0:02:54.9]} 10. O-O-O {[%clk 0:02:47]} 10... O-O {[%clk 0:02:48.3]}
11. Rhe1 {[%clk 0:02:46.8]} 11... a6 {[%clk 0:02:31.4]} 12. Bb3 {[%clk
0:02:43.9]} 12... b5 {[%clk 0:02:14.3]} 13. d5 {[%clk 0:02:44.1]} 13... Nc5
{[%clk 0:02:05]} 14. dxe6 {[%clk 0:02:27.5]} 14... Bxe6 {[%clk 0:01:45.7]} 15.
Bxe6 {[%clk 0:02:25.5]} 15... Nxe6 {[%clk 0:01:45.9]} 16. Nd4 {[%clk 0:02:21.5]}
16... Nxg5 {[%clk 0:01:17.6]} 17. Rxe7 {[%clk 0:02:22.4]} 17... Rfe8 {[%clk
0:01:17.3]} 18. Rde1 {[%clk 0:02:14.1]} 18... Kf8 {[%clk 0:01:04.9]} 19. Rxe8+
{[%clk 0:02:10.1]} 19... Rxe8 {[%clk 0:01:04.6]} 20. Rxe8+ {[%clk 0:02:09.5]}
20... Kxe8 {[%clk 0:01:02.4]} 21. Nc6 {[%clk 0:02:05.8]} 21... Nge4 {[%clk
0:00:53.5]} 22. Nxe4 {[%clk 0:02:03]} 22... Nxe4 {[%clk 0:00:53.6]} 23. f3
{[%clk 0:02:03.7]} 23... Nd6 {[%clk 0:00:47.6]} 24. Kc2 {[%clk 0:01:50.2]} 24...
Nb7 {[%clk 0:00:28.4]} 25. Kc3 {[%clk 0:01:47.8]} 25... Nd8 {[%clk 0:00:17.4]}
26. Nxd8 {[%clk 0:01:21.7]} 26... Kxd8 {[%clk 0:00:17.3]} 27. Kd4 {[%clk
0:01:22.4]} 27... Kd7 {[%clk 0:00:09.5]} 28. Kd5 {[%clk 0:01:20.8]} 28... h5
{[%clk 0:00:07.6]} 29. h4 {[%clk 0:01:20.2]} 29... Kc7 {[%clk 0:00:04]} 30. Kc5
{[%clk 0:01:19.5]} 30... f6 {[%clk 0:00:01]} 31. g4 {[%clk 0:01:17.8]} 31... g6
{[%clk 0:00:01]} 32. gxh5 {[%clk 0:01:17.3]} 32... gxh5 {[%clk 0:00:01.5]} 33.
f4 {[%clk 0:01:15.9]} 33... Kd7 {[%clk 0:00:01.7]} 34. f5 {[%clk 0:01:05.8]}
34... Kc7 {[%clk 0:00:02.2]} 35. b4 {[%clk 0:01:05.3]} 35... Kd7 {[%clk
0:00:02.6]} 36. Kb6 {[%clk 0:01:05.6]} 36... Kd6 {[%clk 0:00:03.2]} 37. Kxa6
{[%clk 0:01:06]} 37... Ke5 {[%clk 0:00:03.4]} 38. Kxb5 {[%clk 0:01:05.1]} 38...
Kxf5 {[%clk 0:00:04]} 39. a4 {[%clk 0:01:00.1]} 39... Kg4 {[%clk 0:00:04.3]} 40.
a5 {[%clk 0:01:00.7]} 40... f5 {[%clk 0:00:04.8]} 41. a6 {[%clk 0:01:01.2]}
41... f4 {[%clk 0:00:05.5]} 42. a7 {[%clk 0:01:02]} 42... f3 {[%clk 0:00:01.9]}
43. a8=Q {[%clk 0:01:02.9]} 43... Kg3 {[%clk 0:00:02]} 44. Kc4 {[%clk
0:01:00.3]} 1-0

[Event "Early-Titled-Tuesday-Blitz-May-28-2024"]
[Site "Chess.com"]
[Date "2024.05.28"]
[Round "10"]
[White "ThetNaung291"]
[Black "KatakuriDono"]
[Result "1/2-1/2"]
[WhiteElo "2343"]
[BlackElo "2273"]
[TimeControl "180+1"]
[EndTime "9:57:42 PDT"]
[Termination "Game drawn by repetition"]

1. d4 {[%clk 0:02:59.6]} 1... d5 {[%clk 0:02:59]} 2. c4 {[%clk 0:02:59]} 2...
dxc4 {[%clk 0:02:59.9]} 3. e4 {[%clk 0:02:54.7]} 3... Nc6 {[%clk 0:02:59.2]} 4.
d5 {[%clk 0:02:53.3]} 4... Ne5 {[%clk 0:02:58.8]} 5. f4 {[%clk 0:02:50.4]} 5...
Nd3+ {[%clk 0:02:57.9]} 6. Bxd3 {[%clk 0:02:50]} 6... cxd3 {[%clk 0:02:58.8]} 7.
Qxd3 {[%clk 0:02:49.6]} 7... e6 {[%clk 0:02:56.5]} 8. Nc3 {[%clk 0:02:48.7]}
8... exd5 {[%clk 0:02:52.4]} 9. Qxd5 {[%clk 0:02:40.4]} 9... Qxd5 {[%clk
0:02:48.4]} 10. Nxd5 {[%clk 0:02:40.2]} 10... Bd6 {[%clk 0:02:49.1]} 11. Ne2
{[%clk 0:02:30.9]} 11... Ne7 {[%clk 0:02:37.9]} 12. Nec3 {[%clk 0:02:18.1]}
12... c6 {[%clk 0:02:37.5]} 13. Nxe7 {[%clk 0:02:15.1]} 13... Kxe7 {[%clk
0:02:38.4]} 14. Be3 {[%clk 0:02:12.3]} 14... Be6 {[%clk 0:02:29.7]} 15. Kf2
{[%clk 0:02:04.5]} 15... Rhd8 {[%clk 0:02:22.9]} 16. Rhd1 {[%clk 0:01:59.9]}
16... a5 {[%clk 0:02:22.2]} 17. a3 {[%clk 0:01:43.3]} 17... Bc7 {[%clk
0:02:21.5]} 18. Bc5+ {[%clk 0:01:42.1]} 18... Ke8 {[%clk 0:02:18.4]} 19. g3
{[%clk 0:01:36.8]} 19... Bg4 {[%clk 0:02:10.5]} 20. Rxd8+ {[%clk 0:01:34]} 20...
Rxd8 {[%clk 0:02:11.4]} 21. Ke3 {[%clk 0:01:23.6]} 21... f6 {[%clk 0:02:03.9]}
22. Na4 {[%clk 0:01:19.9]} 22... Bd1 {[%clk 0:01:52.6]} 23. Nb6 {[%clk
0:01:14.1]} 23... Kf7 {[%clk 0:01:38.4]} 24. b4 {[%clk 0:01:09.1]} 24... a4
{[%clk 0:01:35.2]} 25. Rc1 {[%clk 0:01:05.5]} 25... Bb3 {[%clk 0:01:32.9]} 26.
h4 {[%clk 0:00:59.9]} 26... h5 {[%clk 0:01:30.6]} 27. Nc4 {[%clk 0:00:48.1]}
27... Bxc4 {[%clk 0:01:03.5]} 28. Rxc4 {[%clk 0:00:47.4]} 28... Rd1 {[%clk
0:01:04.2]} 29. Bd4 {[%clk 0:00:41.4]} 29... Rb1 {[%clk 0:00:56.7]} 30. b5
{[%clk 0:00:27.6]} 30... Rxb5 {[%clk 0:00:45.4]} 31. Rxa4 {[%clk 0:00:27.3]}
31... Bb6 {[%clk 0:00:45.3]} 32. Bxb6 {[%clk 0:00:20.4]} 32... Rxb6 {[%clk
0:00:46.2]} 33. Rb4 {[%clk 0:00:12.3]} 33... Rxb4 {[%clk 0:00:46]} 34. axb4
{[%clk 0:00:12.3]} 34... b6 {[%clk 0:00:46.6]} 35. Kd4 {[%clk 0:00:12.2]} 35...
Ke6 {[%clk 0:00:47.2]} 36. Kc4 {[%clk 0:00:11.8]} 36... Kd6 {[%clk 0:00:43.2]}
37. Kd4 {[%clk 0:00:11.7]} 37... Ke6 {[%clk 0:00:43.3]} 38. Kc4 {[%clk
0:00:11.7]} 38... Kd6 {[%clk 0:00:43.6]} 39. Kd4 {[%clk 0:00:11.7]} 39... Ke6
{[%clk 0:00:36.3]} 1/2-1/2